bitfinex-derivatives/quotes_SOLF0:USTF0_20260308
["timestamp","ask_amount","ask_price","bid_price","bid_amount"]
[1773013578176,4.25425731,81.503,81.455,11.049]
[1773013578386,10.32311242,81.53,81.4,2.13588002]
[1773013578387,4.25424675,81.518,81.44,10.32311242]
[1773013578889,4.25152612,81.507,81.448,11.05]
[1773013579284,196.14,81.562,81.4,2.13588002]
[1773013579285,4.25152612,81.526,81.42,10.32311242]
[1773013579581,4.25151601,81.559,81.479,11.046]
[1773013580285,4.25151601,81.548,81.487,11.045]
[1773013580482,4.25151601,81.548,81.48,10.32311242]
[1773013580789,4.21243778,81.561,81.503,11.043]
[1773013580982,4.21243778,81.561,81.48,10.32311242]
[1773013581885,4.21243081,81.558,81.503,11.043]
[1773013582278,11.036,81.553,81.492,11.044]
[1773013582585,15.2700054,81.553,81.492,11.044]
[1773013582785,4.2340054,81.553,81.48,10.32311242]
[1773013583488,4.23399702,81.567,81.48,10.32311242]
[1773013583989,11.035,81.558,81.507,11.042]
[1773013584187,4.23399702,81.567,81.507,11.042]
[1773013584390,4.23399702,81.567,81.48,10.32311242]
[1773013585393,4.23930603,81.565,81.506,11.042]
[1773013585591,4.23930603,81.565,81.48,10.32311242]
[1773013586488,11.034,81.564,81.48,10.32311242]
[1773013586692,15.27576448,81.564,81.48,10.32311242]
[1773013587095,4.24176448,81.559,81.48,10.32311242]
[1773013587384,4.24176448,81.559,81.503,11.042]
[1773013588290,11.035,81.558,81.51,11.042]
[1773013588591,4.24176448,81.559,81.51,11.042]
[1773013588885,4.24176448,81.559,81.518,11.041]
[1773013589889,4.24176448,81.559,81.48,10.32311242]
[1773013589890,4.24176448,81.559,81.526,11.039]
[1773013590094,4.24140203,81.575,81.526,11.039]
[1773013591398,4.25102266,81.591,81.52,10.32311242]
[1773013591791,4.25102266,81.591,81.531,11.039]
[1773013591996,4.25102266,81.588,81.531,11.039]
[1773013592692,4.25102266,81.588,81.538,11.038]
[1773013592903,4.25134749,81.605,81.52,10.32311242]
[1773013593702,4.25124901,81.598,81.545,11.037]
[1773013593896,4.25124901,81.613,81.52,10.32311242]
[1773013594397,4.23830359,81.611,81.558,11.035]
[1773013594598,4.23830359,81.611,81.52,10.32311242]
[1773013595703,4.23830359,81.611,81.506,176.0]
[1773013595704,11.31825774,81.66,81.54,10.32311242]
[1773013596001,11.024,81.639,81.59,11.031]
[1773013596801,4.23324659,81.648,81.59,11.031]
[1773013597198,4.23324659,81.648,81.56,10.32311242]
[1773013597800,4.23324659,81.648,81.595,11.03]
[1773013599207,4.23324659,81.648,81.56,10.32311242]
[1773013600411,4.23324659,81.648,81.594,11.03]
[1773013600607,4.23324659,81.648,81.56,10.32311242]
[1773013601802,15.26429199,81.646,81.584,11.032]
[1773013602004,4.24129199,81.645,81.584,11.032]
[1773013602811,4.24129199,81.645,81.594,11.03]
[1773013605611,4.20759396,81.664,81.58,10.32311242]
[1773013606205,4.20759396,81.659,81.58,10.32311242]
[1773013606406,11.022,81.658,81.596,11.03]
[1773013606616,4.16860359,81.657,81.56,10.32311242]
[1773013607315,4.16860088,81.619,81.54,10.32311242]
[1773013607612,4.16860088,81.619,81.53,10.32311242]
[1773013607807,4.16860088,81.635,81.55,10.32311242]
[1773013609612,4.1749209,81.633,81.55,10.32311242]
[1773013610212,4.1749209,81.629,81.55,10.32311242]
[1773013610508,4.1749209,81.629,81.581,11.032]
[1773013610711,4.17153928,81.639,81.55,10.32311242]
[1773013611312,4.17153928,81.639,81.57,10.32311242]
[1773013611809,4.17153654,81.659,81.606,11.029]
[1773013612010,4.17153654,81.659,81.57,10.32311242]
[1773013612412,4.17153654,81.659,81.611,11.028]
[1773013612610,4.17153654,81.659,81.57,10.32311242]
[1773013613014,4.15495802,81.655,81.595,11.03]
[1773013613516,4.15495618,81.689,81.6,10.32311242]
[1773013613717,4.15495618,81.689,81.624,11.026]
[1773013614716,4.14572309,81.681,81.632,11.025]
[1773013615119,4.14572309,81.681,81.6,10.32311242]
[1773013615313,4.14572309,81.681,81.602,22.059]
[1773013615717,12.24,81.758,81.55,10.32311242]
[1773013615718,4.14572176,81.679,81.58,10.32311242]
[1773013616119,4.14572176,81.664,81.61,11.028]
[1773013620726,10.32311242,81.68,81.602,11.029]
[1773013620727,4.15100109,81.662,81.602,11.029]
[1773013620928,12.48074058,81.686,81.602,11.029]
[1773013620929,4.15100109,81.659,81.602,11.029]
[1773013621330,4.15100109,81.659,81.61,11.028]
[1773013621624,4.15100109,81.659,81.58,10.32311242]
[1773013621820,4.1509996,81.673,81.6,10.32311242]
[1773013622628,11.15781402,81.75,81.62,10.32311242]
[1773013622824,4.14964586,81.728,81.677,11.019]
[1773013623725,4.14962335,81.741,81.66,10.32311242]
[1773013624125,4.14962335,81.741,81.68,10.32311242]
[1773013624923,4.14962335,81.741,81.69,11.017]
[1773013626532,4.14962335,81.741,81.681,11.019]
[1773013626724,4.14962335,81.741,81.68,10.32311242]
[1773013627930,4.14962335,81.741,81.69,11.017]
[1773013628432,4.15206228,81.739,81.66,10.32311242]
[1773013628732,4.15206228,81.739,81.64,10.32311242]
[1773013629629,4.15206228,81.739,81.65,10.2716467]
[1773013629828,4.15185689,81.726,81.65,10.2716467]
[1773013630023,10.2716467,81.74,81.67,10.2716467]
[1773013630024,4.15185689,81.74,81.67,10.2716467]
[1773013630420,4.15185689,81.74,81.682,11.018]
[1773013630832,4.15185689,81.74,81.6,10.2716467]
[1773013630833,4.15185555,81.739,81.65,10.2716467]
[1773013631732,4.15382007,81.721,81.657,11.022]
[1773013631933,4.15382007,81.719,81.63,10.2716467]
[1773013633243,4.15381867,81.708,81.647,11.023]
[1773013633630,4.15381867,81.708,81.63,10.2716467]
[1773013634026,4.15381867,81.708,81.61,10.2716467]
[1773013634234,4.17186862,81.697,81.638,11.024]
[1773013634531,4.17186862,81.697,81.61,10.2716467]
[1773013634737,4.17186655,81.687,81.633,11.025]
[1773013635732,11.018,81.686,81.633,11.025]
[1773013635936,4.17268585,81.685,81.633,11.025]
[1773013636234,4.17268585,81.685,81.61,10.2716467]
[1773013636436,4.17268379,81.699,81.642,11.024]
[1773013636738,4.17268379,81.699,81.61,10.2716467]
[1773013636936,4.17268379,81.689,81.61,10.2716467]
[1773013637530,4.16990714,81.679,81.61,10.2716467]
[1773013638040,4.16990714,81.679,81.59,10.2716467]
[1773013638827,4.16990524,81.677,81.621,11.027]
[1773013639038,4.16990524,81.677,81.59,10.2716467]
[1773013639636,4.16990524,81.677,81.624,11.026]
[1773013640838,4.168371,81.667,81.59,10.2716467]
[1773013641739,4.168371,81.667,81.537,30.37414081]
[1773013641740,4.17687218,81.665,81.58,10.2716467]
[1773013642631,4.17687218,81.665,81.6,10.2716467]
[1773013644333,4.17807066,81.679,81.6,10.2716467]
[1773013644638,4.17807066,81.668,81.59,10.2716467]
[1773013644838,4.17807066,81.668,81.622,11.026]
[1773013645142,4.17807066,81.668,81.59,10.2716467]
[1773013645734,4.17807066,81.668,81.613,11.028]
[1773013645931,4.17807066,81.668,81.59,10.2716467]
[1773013646130,4.16948702,81.659,81.57,10.2716467]
[1773013646340,4.16948702,81.659,81.599,11.03]
[1773013647037,4.1694853,81.655,81.599,11.03]
[1773013648141,4.20467203,81.645,81.591,11.031]
[1773013648435,4.20467203,81.645,81.606,11.029]
[1773013649742,4.20467203,81.645,81.598,11.03]
[1773013650130,4.20467203,81.645,81.57,10.2716467]
[1773013650534,4.20467203,81.645,81.605,11.029]
[1773013651238,4.20467203,81.645,81.612,11.028]
[1773013652343,4.20467203,81.645,81.54,10.2716467]
[1773013652543,4.20467203,81.645,81.58,10.2716467]
[1773013653846,4.20467203,81.645,81.603,11.029]
[1773013656040,4.14692352,81.642,81.58,10.2716467]
[1773013656241,4.14692352,81.642,81.471,343.695]
[1773013656242,4.14692352,81.642,81.56,10.2716467]
[1773013656846,4.14692268,81.638,81.59,11.031]
[1773013657848,4.14692268,81.638,81.56,10.2716467]
[1773013658841,11.023,81.646,81.561,22.07]
[1773013659443,4.14253549,81.64,81.561,22.07]
[1773013659846,4.14253549,81.639,81.54,10.2716467]
[1773013660850,4.14253481,81.613,81.568,11.034]
[1773013661549,4.14253481,81.613,81.54,32.3476467]
[1773013662048,4.14253481,81.613,81.579,11.032]
[1773013663151,4.14280439,81.654,81.56,10.2716467]
[1773013663550,4.12971768,81.636,81.583,11.032]
[1773013663943,4.12971768,81.636,81.561,22.07]
[1773013664148,4.12971768,81.636,81.597,11.03]
[1773013664349,4.12971768,81.636,81.561,22.07]
[1773013665050,15.15471768,81.636,81.589,11.031]
[1773013665354,4.12971768,81.636,81.561,22.07]
[1773013665955,4.12971768,81.636,81.541,22.075]
[1773013666155,4.12971768,81.636,81.54,10.2716467]
[1773013666547,4.14120371,81.631,81.542,22.075]
[1773013667851,4.13828091,81.621,81.575,11.033]
[1773013668047,4.13828091,81.621,81.54,10.2716467]
[1773013668048,4.13828091,81.639,81.54,10.2716467]
[1773013668251,4.13828091,81.639,81.56,10.2716467]
[1773013668446,4.1382804,81.629,81.588,11.031]
[1773013668953,4.1382804,81.645,81.56,10.2716467]
[1773013669656,4.1382804,81.645,81.604,11.029]
[1773013670350,4.1382804,81.645,81.56,10.2716467]
[1773013670551,4.13836496,81.639,81.544,22.075]
[1773013670754,4.13836496,81.629,81.58,11.032]
[1773013670957,4.13836496,81.629,81.545,22.074]
[1773013671255,4.13836496,81.626,81.57,11.033]
[1773013671855,4.13836496,81.626,81.545,22.074]
[1773013672248,4.13836496,81.626,81.54,10.2716467]
[1773013672757,4.14794263,81.618,81.54,10.2716467]
[1773013673555,10.2716467,81.62,81.566,11.034]
[1773013673556,4.15219027,81.609,81.566,11.034]
[1773013673953,4.15219027,81.607,81.54,10.2716467]
[1773013674254,4.15219027,81.607,81.52,10.2716467]
[1773013674448,4.15218946,81.594,81.52,10.2716467]
[1773013675356,4.15218946,81.592,81.52,10.2716467]
[1773013675957,4.15721161,81.619,81.52,10.2716467]
[1773013677856,4.1579894,81.598,81.52,10.2716467]
[1773013678162,4.1579894,81.619,81.522,22.08]
[1773013678361,4.1579894,81.619,81.54,10.2716467]
[1773013678953,4.1579894,81.619,81.563,11.034]
[1773013679359,4.1579894,81.619,81.54,10.2716467]
[1773013679857,4.1579894,81.619,81.578,11.032]
[1773013680063,4.1579894,81.619,81.54,10.2716467]
[1773013680358,4.15553226,81.614,81.57,11.033]
[1773013681461,4.15553226,81.614,81.562,11.035]
[1773013681855,4.15553226,81.614,81.54,10.2716467]
[1773013682062,4.15553226,81.614,81.522,22.08]
[1773013682557,4.1642872,81.613,81.54,10.2716467]
[1773013683664,4.1642872,81.613,81.573,11.033]
[1773013684861,4.16266962,81.599,81.52,10.2716467]
[1773013685562,4.16464015,81.595,81.548,11.036]
[1773013686164,4.16464015,81.593,81.548,11.036]
[1773013686666,4.16464015,81.593,81.541,11.037]
[1773013686865,4.16463919,81.59,81.541,11.037]
[1773013687867,4.16493338,81.588,81.541,11.037]
[1773013688667,4.16493338,81.588,81.547,11.037]
[1773013689270,4.16493245,81.599,81.547,11.037]
[1773013690876,4.16495038,81.596,81.547,11.037]
[1773013691474,11.031,81.591,81.547,11.037]
[1773013692170,15.1960306,81.591,81.547,11.037]
[1773013692677,4.1650306,81.591,81.547,11.037]
[1773013695782,4.16769071,81.59,81.547,11.037]
[1773013696079,4.16769071,81.589,81.483,22.091]
[1773013696682,4.16768981,81.555,81.508,11.042]
[1773013698081,4.17319063,81.553,81.508,11.042]
[1773013698279,4.17319063,81.553,81.5,11.043]
[1773013698680,4.17319063,81.553,81.463,22.096]
[1773013699985,4.17319063,81.553,81.506,11.042]
[1773013701081,4.17319063,81.553,81.463,22.096]
[1773013703287,4.14624405,81.57,81.5,10.30381742]
[1773013704485,4.14624405,81.57,81.48,10.30381742]
[1773013705088,4.16243202,81.539,81.491,11.044]
[1773013705286,4.16243202,81.539,81.48,10.30381742]
[1773013705791,4.16408258,81.576,81.51,10.30381742]
[1773013706087,4.16408258,81.601,81.51,10.30381742]
[1773013706286,4.16408258,81.589,81.51,10.30381742]
[1773013706493,4.16408183,81.563,81.49,10.30381742]
[1773013706688,4.16408183,81.563,81.432,2.1341641]
[1773013706893,4.16408183,81.563,81.47,10.30381742]
[1773013707393,4.13272695,81.537,81.447,22.101]
[1773013707600,4.13272695,81.537,81.46,10.30381742]
[1773013708092,4.13272695,81.537,81.492,11.044]
[1773013708691,4.13272695,81.537,81.482,11.045]
[1773013709397,4.13272673,81.569,81.481,0.29324434]
[1773013710496,10.30381742,81.57,81.481,0.29324434]
[1773013710497,3.90709163,81.547,81.481,0.29324434]
[1773013711796,4.04338907,81.539,81.488,11.045]
[1773013712498,4.04339023,81.535,81.488,11.045]
[1773013714096,4.0431621,81.532,81.488,11.045]
[1773013714292,4.0431621,81.532,81.481,0.29324434]
[1773013715799,4.0431621,81.532,81.484,11.045]
[1773013716395,4.04269368,81.531,81.484,11.045]
[1773013716803,4.04269368,81.531,81.432,2.1341641]
[1773013716804,4.04269479,81.501,81.45,0.0294065]
[1773013717796,11.043,81.499,81.454,11.049]
[1773013718196,4.04555243,81.498,81.45,0.0294065]
[1773013719002,4.04555347,81.521,81.45,0.0294065]
[1773013719592,4.04637167,81.517,81.45,0.0294065]
[1773013720197,4.04637167,81.508,81.458,11.049]
[1773013721395,4.19634914,81.505,81.458,11.049]
[1773013721595,4.19634914,81.505,81.449,11.05]
[1773013722806,10.30381742,81.51,81.449,11.05]
[1773013722807,4.19634809,81.494,81.449,11.05]
[1773013723802,11.043,81.503,81.456,11.049]
[1773013724203,4.19769076,81.509,81.44,10.30381742]
[1773013724402,4.19769076,81.509,81.46,11.048]
[1773013725199,4.19769076,81.509,81.467,11.047]
[1773013725405,4.19769076,81.509,81.44,10.30381742]
[1773013725605,4.24738411,81.524,81.44,10.30381742]
[1773013725903,22.068,81.57,81.42,10.30381742]
[1773013725904,4.24738411,81.539,81.46,10.30381742]
[1773013727006,4.24738245,81.535,81.46,10.30381742]
[1773013728408,4.24283059,81.527,81.46,10.30381742]
[1773013728606,10.30381742,81.55,81.46,10.30381742]
[1773013728607,4.24283059,81.549,81.46,10.30381742]
[1773013729003,11.037,81.544,81.493,11.044]
[1773013729204,4.24283059,81.549,81.48,10.30381742]
[1773013729713,4.25492428,81.547,81.501,11.043]
[1773013730102,4.25492428,81.544,81.501,11.043]
[1773013730413,4.25492428,81.544,81.46,10.30381742]
[1773013730612,4.2549226,81.535,81.46,10.30381742]
[1773013731913,4.30725232,81.531,81.486,11.045]
[1773013732314,4.30725232,81.531,81.499,11.043]
[1773013732614,4.30725232,81.531,81.46,10.30381742]
[1773013733816,4.30725232,81.531,81.491,11.044]
[1773013734315,4.30725232,81.531,81.46,10.30381742]
[1773013734909,4.30725232,81.531,81.491,11.044]
[1773013735115,4.30318156,81.553,81.48,10.30381742]
[1773013735619,4.30291159,81.54,81.46,10.30381742]
[1773013736416,4.30290947,81.559,81.48,10.30381742]
[1773013737017,4.30290947,81.579,81.5,10.30381742]
[1773013737620,4.30290947,81.579,81.533,11.038]
[1773013739115,4.30290947,81.579,81.543,11.037]
[1773013739819,4.29528985,81.593,81.52,10.30381742]
[1773013741021,4.29528985,81.593,81.549,11.036]
[1773013741416,4.29528985,81.593,81.52,10.30381742]
[1773013741815,4.29528985,81.593,81.548,11.036]
[1773013742015,4.29528985,81.593,81.52,10.30381742]
[1773013742316,4.29240813,81.613,81.54,10.30381742]
[1773013742822,4.29240813,81.613,81.56,10.30381742]
[1773013743024,4.29240626,81.639,81.56,10.30381742]
[1773013743219,4.29240626,81.639,81.583,11.032]
[1773013743615,4.29240626,81.639,81.56,10.30381742]
[1773013743818,4.29240626,81.639,81.591,11.031]
[1773013744722,4.29518846,81.635,81.575,11.033]
[1773013744912,4.29518846,81.635,81.55,10.30381742]
[1773013745619,4.32335318,81.657,81.57,10.30381742]
[1773013746332,4.32335318,81.647,81.596,11.03]
[1773013747017,4.32337702,81.677,81.605,11.029]
[1773013747723,4.32337702,81.677,81.616,11.027]
[1773013747924,4.32337702,81.677,81.59,10.30381742]
[1773013748121,4.32337702,81.677,81.614,11.027]
[1773013748315,4.32337702,81.677,81.59,10.30381742]
[1773013748520,4.32337702,81.677,81.61,10.30381742]
[1773013749027,4.32337702,81.677,81.629,11.026]
[1773013749728,4.32337702,81.677,81.618,11.027]
[1773013750623,4.23328569,81.674,81.618,11.027]
[1773013752426,4.23897772,81.672,81.618,11.027]
[1773013752925,4.23897772,81.688,81.61,10.28498796]
[1773013753322,4.23897772,81.719,81.645,11.023]
[1773013753514,4.23897772,81.719,81.61,10.28498796]
[1773013753515,4.23897772,81.719,81.63,10.28498796]
[1773013753719,4.23897772,81.719,81.65,10.28498796]
[1773013753919,4.23897772,81.719,81.67,11.02]
[1773013754524,4.23897772,81.719,81.66,11.021]
[1773013755125,4.2390642,81.718,81.668,11.02]
[1773013755931,4.24904277,81.716,81.658,11.022]
[1773013756525,4.24904277,81.716,81.648,11.023]
[1773013757524,4.30626743,81.706,81.656,11.022]
[1773013757728,4.30626743,81.706,81.615,22.055]
[1773013757729,10.28498796,81.72,81.63,10.28498796]
[1773013757934,4.30626743,81.739,81.65,10.28498796]
[1773013758125,4.30626743,81.739,81.69,11.017]
[1773013759620,15.31421115,81.754,81.69,11.017]
[1773013759826,4.30521115,81.753,81.69,11.017]
[1773013760227,11.009,81.75,81.697,11.016]
[1773013760432,4.30521115,81.753,81.697,11.016]
[1773013760624,4.30520956,81.773,81.69,10.28498796]
[1773013761024,4.30520956,81.769,81.69,10.28498796]
[1773013761231,4.30520956,81.769,81.673,22.04]
[1773013761532,4.30520956,81.769,81.722,11.013]
[1773013761826,4.30520956,81.769,81.673,22.04]
[1773013762028,4.25078152,81.767,81.713,11.014]
[1773013762231,4.25078152,81.767,81.673,22.04]
[1773013762629,4.25078152,81.767,81.67,10.28498796]
[1773013762936,4.25078042,81.783,81.7,10.28498796]
[1773013763130,4.25078042,81.783,81.731,11.012]
[1773013763435,4.25078042,81.783,81.7,10.28498796]
[1773013764431,4.33713669,81.798,81.72,10.28498796]
[1773013765032,4.33713669,81.819,81.72,10.28498796]
[1773013765531,4.34741377,81.797,81.7,10.28498796]
[1773013766030,4.34741377,81.786,81.7,10.28498796]
[1773013766233,4.34741377,81.803,81.72,10.28498796]
[1773013766434,4.34741377,81.819,81.74,10.28498796]
[1773013766637,4.34741195,81.837,81.74,10.28498796]
[1773013766935,12.24988394,81.862,81.72,10.28498796]
[1773013766936,4.34741195,81.799,81.72,10.28498796]
[1773013767136,4.34741195,81.788,81.737,11.011]
[1773013767537,4.34741195,81.788,81.708,296.76187064]
[1773013768332,10.28498796,81.78,81.735,11.011]
[1773013768637,4.34741195,81.788,81.735,11.011]
[1773013768837,4.41387148,81.779,81.734,11.011]
[1773013769032,4.41387148,81.779,81.708,296.76187064]
[1773013769434,4.34725508,81.769,81.708,296.76187064]
[1773013771043,10.28498796,81.78,81.708,296.76187064]
[1773013771044,4.34725335,81.764,81.708,296.76187064]
[1773013772036,10.28498796,81.78,81.708,296.76187064]
[1773013772232,4.32832066,81.779,81.708,296.76187064]
[1773013772944,10.28498796,81.78,81.708,296.76187064]
[1773013773135,4.32831911,81.795,81.71,10.28498796]
[1773013773440,4.32831911,81.795,81.73,10.28498796]
[1773013773835,4.32831911,81.795,81.71,10.28498796]
[1773013774039,4.31223626,81.779,81.708,296.76187064]
[1773013774937,4.31223487,81.769,81.708,296.76187064]
[1773013775145,4.31223487,81.759,81.708,296.76187064]
[1773013776443,4.31773938,81.779,81.708,296.76187064]
[1773013777339,4.31773938,81.779,81.726,11.012]
[1773013777540,4.31773938,81.779,81.71,10.28498796]
[1773013778040,4.31773938,81.779,81.708,296.76187064]
[1773013779241,4.34776297,81.768,81.708,296.76187064]
[1773013780236,10.28498796,81.78,81.715,11.014]
[1773013780237,4.33949956,81.766,81.715,11.014]
[1773013780444,4.33949956,81.766,81.708,296.76187064]
[1773013781444,4.34181411,81.754,81.708,296.76187064]
[1773013782038,4.34181411,81.749,81.708,296.76187064]
[1773013782937,4.34181265,81.744,81.708,296.76187064]
[1773013783545,11.012,81.733,81.682,11.018]
[1773013784043,4.34181265,81.744,81.67,10.28498796]
[1773013784834,11.01,81.742,81.69,11.017]
[1773013785140,4.34361343,81.741,81.69,11.017]
[1773013786840,11.011,81.737,81.69,11.017]
[1773013787438,4.34557751,81.76,81.67,10.28498796]
[1773013787951,4.34557751,81.76,81.7,10.28498796]
[1773013788344,11.008,81.759,81.715,11.014]
[1773013788544,4.34557751,81.76,81.715,11.014]
[1773013789545,4.34557751,81.76,81.722,11.013]
[1773013792346,4.37820723,81.758,81.713,11.014]
[1773013792756,4.37820723,81.758,81.673,22.04]
[1773013793648,11.01,81.745,81.705,11.015]
[1773013793946,11.01,81.745,81.68,10.28498796]
[1773013794849,11.01,81.745,81.697,11.016]
[1773013795049,11.01,81.745,81.68,10.28498796]
[1773013795953,11.011,81.737,81.695,11.017]
[1773013796851,11.01,81.744,81.701,11.016]
[1773013798356,11.011,81.737,81.694,11.017]
[1773013798554,4.38061852,81.745,81.68,10.28498796]
[1773013798754,4.38061852,81.745,81.694,11.017]
[1773013799852,4.38061852,81.745,81.703,11.016]
[1773013800054,4.37983247,81.767,81.68,10.28498796]
[1773013800256,4.37983247,81.788,81.7,10.28498796]
[1773013800457,4.37983247,81.787,81.7,10.28498796]
[1773013801252,11.005,81.783,81.736,11.011]
[1773013801456,9.40007114,81.801,81.72,10.28498796]
[1773013801653,4.39903202,81.803,81.72,10.28498796]
[1773013801857,4.39903202,81.798,81.72,10.28498796]
[1773013802049,4.39903202,81.796,81.72,10.28498796]
[1773013802252,4.39903202,81.794,81.72,10.28498796]
[1773013802450,4.39903202,81.792,81.72,10.28498796]
[1773013802654,9.40007114,81.806,81.72,10.28498796]
[1773013802962,4.39903057,81.806,81.72,10.28498796]
[1773013803152,4.39903057,81.805,81.72,10.28498796]
[1773013803353,11.003,81.796,81.742,11.01]
[1773013803660,4.41066281,81.802,81.742,11.01]
[1773013804352,11.003,81.798,81.742,11.01]
[1773013804550,15.41366134,81.798,81.742,11.01]
[1773013804752,9.40007114,81.812,81.74,10.28498796]
[1773013804951,4.41066134,81.815,81.74,10.28498796]
[1773013805359,4.41066134,81.833,81.76,10.28498796]
[1773013805561,9.40007114,81.841,81.78,10.28498796]
[1773013805859,4.41612663,81.839,81.771,11.006]
[1773013806058,4.41612663,81.831,81.771,11.006]
[1773013806457,4.4160916,81.848,81.76,10.28498796]
[1773013806663,4.4160916,81.847,81.78,10.28498796]
[1773013806864,9.40007114,81.846,81.76,10.28498796]
[1773013807165,15.4150916,81.83,81.778,11.005]
[1773013807467,4.4160916,81.829,81.76,10.28498796]
[1773013807655,4.4160916,81.829,81.777,11.005]
[1773013807966,4.4160916,81.829,81.76,10.28498796]
[1773013808963,10.94394861,81.856,81.78,10.28498796]
[1773013809161,4.44325706,81.864,81.78,10.28498796]
[1773013809565,4.44325706,81.864,81.72,10.28498796]
[1773013809566,4.44428792,81.881,81.8,10.28498796]
[1773013809869,2.12652844,81.898,81.728,171.307]
[1773013809870,4.44428792,81.895,81.82,10.28498796]
[1773013810061,4.44428792,81.894,81.82,10.28498796]
[1773013811460,4.44428792,81.894,81.743,12.27]
[1773013811461,4.44428641,81.892,81.8,10.28498796]
[1773013811662,4.42321834,81.889,81.79,10.23548521]
[1773013811863,4.42321834,81.883,81.812,11.001]
[1773013812469,4.42321834,81.883,81.79,10.23548521]
[1773013813265,4.42321696,81.875,81.79,10.23548521]
[1773013813468,4.42321696,81.889,81.81,10.23548521]
[1773013814068,4.43507923,81.887,81.79,10.23548521]
[1773013814471,4.43507783,81.876,81.819,11.0]
[1773013817673,4.39211212,81.872,81.805,11.002]
[1773013818070,4.39211212,81.872,81.79,10.23548521]
[1773013818265,4.39211212,81.872,81.815,11.0]
[1773013819175,4.39211212,81.872,81.79,10.23548521]
[1773013820774,4.38685082,81.861,81.805,11.002]
[1773013821077,4.38685082,81.859,81.76,10.23548521]
[1773013821477,4.38685082,81.84,81.783,11.005]
[1773013822181,4.38548606,81.839,81.74,10.23548521]
[1773013822376,4.38548606,81.839,81.76,10.23548521]
[1773013822979,4.38548606,81.839,81.786,11.004]
[1773013823771,4.29980864,81.836,81.777,11.006]
[1773013823984,4.29980864,81.836,81.76,10.23548521]
[1773013825877,10.998,81.832,81.777,11.006]
[1773013826682,10.999,81.828,81.777,11.006]
[1773013827785,4.2673769,81.816,81.763,11.007]
[1773013827983,4.2673769,81.839,81.76,10.23548521]
[1773013828175,10.23548521,81.9,81.76,10.23548521]
[1773013828176,4.2673769,81.859,81.76,10.23548521]
[1773013829883,4.26097716,81.839,81.76,10.23548521]
[1773013830779,15.25897663,81.834,81.782,11.005]
[1773013830978,4.26097663,81.833,81.782,11.005]
[1773013831784,10.998,81.832,81.782,11.005]
[1773013832280,4.25036464,81.831,81.782,11.005]
[1773013834791,4.24911986,81.829,81.782,11.005]
[1773013835891,10.999,81.826,81.782,11.005]
[1773013836995,4.24911986,81.829,81.74,10.23548521]
[1773013837895,11.001,81.81,81.762,11.008]
[1773013838195,4.29445096,81.815,81.74,10.23548521]
[1773013839790,4.29312667,81.839,81.74,10.23548521]
[1773013839993,4.29312667,81.839,81.789,11.004]
[1773013839994,10.998,81.834,81.789,11.004]
[1773013840193,11.17970214,81.891,81.721,12.43593137]
[1773013840194,4.29312667,81.854,81.78,10.23548521]
[1773013840606,4.2931261,81.846,81.766,22.015]
[1773013841006,4.2931261,81.846,81.76,10.23548521]
[1773013841007,10.998,81.836,81.789,11.004]
[1773013841206,4.2931261,81.835,81.789,11.004]
[1773013842910,10.998,81.832,81.789,11.004]
[1773013843202,4.2931261,81.835,81.76,10.23548521]
[1773013843610,4.2931261,81.835,81.79,3.82323419]
[1773013844907,4.2931261,81.835,81.796,11.003]
[1773013845211,4.2931261,81.835,81.79,3.82323419]
[1773013845406,4.2931261,81.835,81.796,11.003]
[1773013848211,4.2931261,81.835,81.802,11.002]
[1773013851615,4.2931261,81.835,81.79,11.004]
[1773013853922,10.998,81.833,81.79,11.004]
[1773013856820,15.32196377,81.831,81.79,11.004]
[1773013857421,15.32748549,81.826,81.781,11.005]
[1773013857926,15.32748549,81.826,81.755,22.017]
[1773013857927,4.32848549,81.849,81.794,11.003]
[1773013858120,4.32848549,81.847,81.794,11.003]
[1773013858623,10.998,81.834,81.786,11.004]
[1773013858921,4.32848494,81.833,81.786,11.004]
[1773013859821,4.3279196,81.829,81.786,11.004]
[1773013860018,4.3279196,81.829,81.777,11.005]
[1773013860820,4.32791906,81.821,81.777,11.005]
[1773013861226,4.32791906,81.85,81.786,11.004]